bitfinex-derivatives/quotes_BTCF0:USTF0_20251215
["timestamp","ask_amount","ask_price","bid_price","bid_amount"]
[1765821358622,0.05,85808.0,85807.0,0.80652412]
[1765821359127,0.05,85808.0,85807.0,0.80752412]
[1765821360621,0.05,85808.0,85807.0,0.80852412]
[1765821362019,0.00233053,85818.0,85814.0,0.7055433]
[1765821362316,0.86882488,85815.0,85814.0,1.0954033]
[1765821362521,0.68882488,85815.0,85814.0,0.7055433]
[1765821362818,0.73882488,85815.0,85814.0,1.4399033]
[1765821363018,0.05017488,85815.0,85814.0,1.55643372]
[1765821363231,0.73882488,85815.0,85814.0,1.55643372]
[1765821363428,0.83882488,85815.0,85814.0,1.55643372]
[1765821363620,0.83882488,85815.0,85814.0,1.55839372]
[1765821364129,0.83882488,85815.0,85814.0,1.4428633]
[1765821364323,0.83882488,85815.0,85814.0,1.54756324]
[1765821364528,0.83882488,85815.0,85814.0,1.4428633]
[1765821364721,0.83882488,85815.0,85814.0,1.54756324]
[1765821364923,0.83882488,85815.0,85814.0,1.54856324]
[1765821365329,0.83882488,85815.0,85814.0,1.54656324]
[1765821365528,0.83882488,85815.0,85814.0,1.4418633]
[1765821366431,1.01908808,85815.0,85814.0,0.002]
[1765821366632,0.7003045,85805.0,85804.0,0.10469994]
[1765821366833,0.68865,85803.0,85802.0,0.0116549]
[1765821367136,0.8603048,85803.0,85802.0,0.10469994]
[1765821367337,0.68865,85801.0,85800.0,0.10469994]
[1765821367629,0.68865,85801.0,85798.0,0.01183028]
[1765821367630,0.68865,85799.0,85798.0,0.36122028]
[1765821367833,0.87865,85799.0,85798.0,0.01183028]
[1765821368429,0.87865,85799.0,85798.0,0.00017488]
[1765821368633,0.87865,85799.0,85798.0,0.10476282]
[1765821369130,0.87865,85799.0,85798.0,0.79865282]
[1765821369131,0.78865,85799.0,85798.0,0.79865282]
[1765821369346,0.80865,85799.0,85798.0,0.69406488]
[1765821369639,0.80865,85799.0,85798.0,0.00017488]
[1765821369938,0.80965,85799.0,85798.0,0.00017488]
[1765821370833,0.80965,85799.0,85791.0,0.00010908]
[1765821370834,0.7003063,85792.0,85791.0,0.00010908]
[1765821371039,0.8903063,85792.0,85791.0,0.00010908]
[1765821371229,0.68865,85792.0,85791.0,0.34949908]
[1765821371532,0.79865,85792.0,85791.0,0.34949908]
[1765821371733,0.79865,85792.0,85791.0,0.00010908]
[1765821372235,0.004,85799.0,85791.0,0.00010908]
[1765821372236,0.69165,85799.0,85798.0,0.0116555]
[1765821372436,0.81165,85799.0,85798.0,0.0116555]
[1765821373026,0.80865,85799.0,85798.0,0.0116555]
[1765821373237,0.80865,85799.0,85798.0,0.3610455]
[1765821373739,0.81165,85799.0,85798.0,0.0116555]
[1765821374135,0.68865,85792.0,85791.0,0.70665548]
[1765821374443,0.85865,85792.0,85791.0,0.00010908]
[1765821375432,0.7003071,85786.0,85785.0,0.10458794]
[1765821375640,0.68865,85784.0,85780.0,0.10458794]
[1765821375832,0.7003079,85780.0,85779.0,0.10458794]
[1765821376037,0.68865,85778.0,85777.0,0.0116583]
[1765821376238,0.80865,85778.0,85777.0,0.0116583]
[1765821376437,0.80876564,85778.0,85777.0,0.11624624]
[1765821376644,0.80876564,85778.0,85777.0,0.0116583]
[1765821376939,0.80876564,85778.0,85777.0,0.11624624]
[1765821377235,0.7003083,85777.0,85776.0,0.10458794]
[1765821377423,0.8703083,85777.0,85775.0,0.11624644]
[1765821377630,1.04945,85776.0,85775.0,0.11624644]
[1765821377835,1.16945,85776.0,85775.0,0.0116585]
[1765821378031,1.04945,85776.0,85775.0,0.7055485]
[1765821378333,1.17945,85776.0,85775.0,0.0116585]
[1765821378838,1.04945,85776.0,85775.0,0.3610485]
[1765821379032,1.04945,85776.0,85775.0,0.79783664]
[1765821379629,1.04945,85776.0,85775.0,0.8815226]
[1765821379630,1.05145,85776.0,85775.0,0.8815226]
[1765821380031,0.6932,85776.0,85775.0,0.8815226]
[1765821380338,0.00011564,85778.0,85775.0,0.8815226]
[1765821380339,0.00011564,85778.0,85777.0,0.69389]
[1765821380640,0.69876564,85778.0,85777.0,0.69389]
[1765821380828,0.82876564,85778.0,85777.0,0.69389]
[1765821381028,0.82876564,85778.0,85775.0,0.18760317]
[1765821381029,0.68865,85776.0,85775.0,0.18760317]
[1765821381228,0.68865,85776.0,85770.0,0.08365653]
[1765821381229,0.700309,85772.0,85770.0,0.08365653]
[1765821381429,0.9002693,85770.0,85769.0,0.08383141]
[1765821381632,1.4310693,85770.0,85769.0,0.08383141]
[1765821381833,1.21945,85770.0,85769.0,0.43322141]
[1765821382038,1.15945,85770.0,85769.0,0.08383141]
[1765821382329,1.15945,85770.0,85769.0,0.00017488]
[1765821382534,1.15945,85770.0,85769.0,0.34956488]
[1765821382740,1.15945,85770.0,85769.0,0.69406488]
[1765821382937,1.16045,85770.0,85769.0,0.00017488]
[1765821383333,1.15945,85770.0,85769.0,0.00017488]
[1765821383535,1.36041,85770.0,85769.0,0.00017488]
[1765821383834,1.36041,85770.0,85751.0,0.36094832]
[1765821383835,0.68865,85762.0,85761.0,0.08365653]
[1765821384037,0.9002705,85761.0,85760.0,0.08365653]
[1765821384240,0.7003108,85759.0,85758.0,0.08365653]
[1765821384437,0.85726,85752.0,85751.0,0.00014832]
[1765821384628,0.0116619,85751.0,85750.0,4e-05]
[1765821384828,0.68865,85749.0,85748.0,0.02057157]
[1765821385043,0.84865,85749.0,85748.0,0.02057157]
[1765821385828,0.68865,85744.0,85743.0,0.000117]
[1765821386029,1.24956024,85744.0,85743.0,0.01960561]
[1765821386238,1.26122304,85744.0,85743.0,0.01960561]
[1765821386939,1.26322304,85744.0,85743.0,0.01960561]
[1765821387140,1.25156024,85744.0,85743.0,0.01960561]
[1765821387339,1.25156024,85744.0,85743.0,0.36899561]
[1765821387531,1.25156024,85744.0,85743.0,0.71349561]
[1765821387735,1.25256024,85744.0,85743.0,0.71349561]
[1765821387933,1.25256024,85744.0,85743.0,0.01960561]
[1765821388438,1.25356024,85744.0,85743.0,0.01960561]
[1765821389037,1.25156024,85744.0,85743.0,0.01960561]
[1765821389435,1.25156024,85744.0,85730.0,0.23922737]
[1765821389436,0.54348,85725.0,85711.0,0.56833536]
[1765821389643,0.54348,85724.0,85723.0,0.10422087]
[1765821389842,0.54348,85722.0,85720.0,0.2013]
[1765821390146,0.90428,85722.0,85721.0,0.71725379]
[1765821390345,0.01,85735.0,85724.0,0.0116655]
[1765821390346,0.0116648,85730.0,85724.0,0.0116655]
[1765821390546,0.54348,85725.0,85724.0,0.7125255]
[1765821390743,0.35174,85725.0,85724.0,0.7125255]
[1765821390934,0.90428,85735.0,85734.0,0.19918]
[1765821391139,0.90428,85735.0,85724.0,0.7125255]
[1765821391140,0.27174,85725.0,85724.0,0.7125255]
[1765821391334,0.71254,85725.0,85724.0,0.7105255]
[1765821391541,0.71254,85725.0,85721.0,0.02139477]
[1765821391542,0.54348,85722.0,85721.0,0.02139477]
[1765821391737,0.72348,85722.0,85721.0,0.02139477]
[1765821392841,0.72348,85722.0,85721.0,0.01939477]
[1765821393145,0.72348,85722.0,85721.0,0.02039477]
[1765821393741,0.72348,85722.0,85721.0,0.02239477]
[1765821394140,0.27174,85711.0,85710.0,0.6832673]
[1765821394341,1.08428,85711.0,85710.0,0.6832673]
[1765821394640,1.08428,85711.0,85710.0,0.70337558]
[1765821394847,1.08428,85711.0,85710.0,0.03177558]
[1765821395644,1.08428,85711.0,85710.0,0.03477558]
[1765821395847,1.08428,85711.0,85710.0,0.03777558]
[1765821396046,1.08428,85711.0,85710.0,0.70937558]
[1765821396344,0.90428,85711.0,85710.0,0.70937558]
[1765821396548,0.99436731,85711.0,85710.0,0.02610828]
[1765821397045,0.99436731,85711.0,85698.0,0.67257379]
[1765821397046,0.53148,85699.0,85698.0,3.79e-06]
[1765821397347,0.5384106,85687.0,85678.0,0.0116718]
[1765821397646,1.0692106,85687.0,85686.0,0.01939014]
[1765821397951,1.0692106,85687.0,85686.0,8.497e-05]
[1765821398341,1.0702106,85687.0,85686.0,0.01933909]
[1765821399740,1.05854,85687.0,85686.0,0.69093909]
[1765821399945,0.62617,85687.0,85686.0,0.69093909]
[1765821400138,0.73617,85687.0,85686.0,0.69093909]
[1765821400344,0.4728,85687.0,85686.0,0.69093909]
[1765821401151,0.003,85687.0,85686.0,0.80764358]
[1765821401757,0.002,85687.0,85686.0,0.80764358]
[1765821402053,0.3608,85708.0,85706.0,0.683268]
[1765821402241,0.65691498,85707.0,85706.0,0.683268]
[1765821402445,0.26337,85693.0,85692.0,0.6716]
[1765821402655,0.67674,85693.0,85692.0,0.0116698]
[1765821402950,0.52674,85693.0,85692.0,0.0116698]
[1765821403146,0.26337,85693.0,85692.0,0.6832698]
[1765821403854,0.26554498,85707.0,85706.0,0.683268]
[1765821404054,0.29554498,85707.0,85706.0,0.683268]
[1765821404445,0.52674,85705.0,85704.0,0.2107]
[1765821404645,0.26337,85696.0,85695.0,0.32612]
[1765821404855,0.26337,85696.0,85695.0,0.3377895]
[1765821405051,0.26337,85696.0,85695.0,0.6832695]
[1765821405550,0.3608,85701.0,85692.0,0.3377899]
[1765821405551,0.52674,85693.0,85692.0,0.3377899]
[1765821405867,0.52674,85691.0,85690.0,0.22237]
[1765821406052,0.88754,85701.0,85700.0,0.3377888]
[1765821406248,0.52674,85696.0,85695.0,0.3377894]
[1765821406449,0.5384097,85693.0,85692.0,0.0116699]
[1765821406757,1.0592097,85693.0,85692.0,0.0116699]
[1765821407643,0.52674,85691.0,85690.0,0.2107]
[1765821408452,0.52674,85691.0,85690.0,0.53682]
[1765821408849,0.26337,85691.0,85690.0,0.8823]
[1765821409049,0.3648,85693.0,85692.0,0.6716]
[1765821409259,0.3638,85693.0,85692.0,0.6716]
[1765821409460,0.003,85693.0,85692.0,0.6716]
[1765821409759,0.36088731,85711.0,85706.0,0.683268]
[1765821410260,0.0116675,85710.0,85706.0,0.683268]
[1765821410459,0.26354498,85707.0,85706.0,0.683268]
[1765821410658,0.36354498,85707.0,85706.0,0.683268]
[1765821410958,0.538408,85706.0,85705.0,0.011668]
[1765821411546,0.52674,85706.0,85705.0,0.011668]
[1765821411751,0.52674,85702.0,85701.0,0.2223687]
[1765821411953,0.00217498,85707.0,85706.0,0.683268]
[1765821412571,0.52674,85702.0,85701.0,0.2223687]
[1765821412751,0.47297498,85707.0,85698.0,0.011669]
[1765821412752,0.52674,85699.0,85698.0,0.011669]
[1765821413259,0.62674,85699.0,85698.0,0.011669]
[1765821413457,0.62674,85699.0,85695.0,0.02886988]
[1765821413458,0.52674,85696.0,85695.0,0.02886988]
[1765821413848,0.52674,85694.0,85693.0,0.0116697]
[1765821414048,0.63674,85694.0,85693.0,0.0116697]
[1765821414864,0.26337,85692.0,85691.0,0.01167]
[1765821415067,0.52674,85692.0,85691.0,0.01167]
[1765821415457,0.64674,85692.0,85691.0,0.01167]
[1765821415858,0.64674,85692.0,85691.0,0.68327]
[1765821416466,0.52674,85692.0,85691.0,0.68327]
[1765821416865,0.52874,85692.0,85691.0,0.68327]
[1765821417168,0.102,85692.0,85691.0,0.68327]
[1765821417466,0.002,85692.0,85691.0,0.68327]
[1765821417761,0.001,85692.0,85691.0,0.68327]
[1765821417966,0.002,85692.0,85691.0,1.41835]
[1765821418968,0.002,85692.0,85691.0,0.68327]
[1765821419169,0.001,85692.0,85691.0,1.41835]
[1765821419364,0.3608,85698.0,85697.0,0.6832692]
[1765821419564,0.98754,85698.0,85697.0,0.0116692]
[1765821419767,0.88754,85698.0,85697.0,0.0116692]
[1765821420275,1.00754,85698.0,85697.0,0.0116692]
[1765821421063,1.00954,85698.0,85697.0,0.0116692]
[1765821421566,1.01054,85698.0,85697.0,0.0116692]
[1765821421768,0.5384096,85695.0,85694.0,0.0116695]
[1765821421972,0.6584096,85695.0,85694.0,0.0116695]
[1765821422361,0.38337,85695.0,85694.0,0.7105795]
[1765821422570,0.005,85698.0,85697.0,0.7105792]
[1765821422758,0.00017498,85707.0,85706.0,0.710578]
[1765821422962,0.3608,85720.0,85710.0,0.69891]
[1765821423272,0.03986218,85711.0,85710.0,0.69891]
[1765821423674,0.01008731,85711.0,85710.0,0.8156036]
[1765821424658,0.00017498,85719.0,85718.0,0.69891]
[1765821424858,0.3608,85731.0,85730.0,0.7105747]
[1765821425074,0.4708,85731.0,85730.0,1.4456547]
[1765821425462,0.4808,85731.0,85730.0,1.4456547]
[1765821425657,0.3608,85731.0,85730.0,1.4456547]
[1765821425865,0.36088632,85731.0,85730.0,1.4456547]
[1765821426067,1.09754632,85731.0,85730.0,0.32747651]
[1765821426267,1.09754632,85731.0,85722.0,0.01184078]
[1765821426268,0.57446,85723.0,85722.0,0.01184078]
[1765821426470,0.48388632,85731.0,85722.0,0.01184078]
[1765821426471,0.57446,85729.0,85728.0,0.55052]
[1765821426670,0.76446,85729.0,85728.0,0.55052]
[1765821426866,0.76446,85729.0,85728.0,0.19668]
[1765821427773,0.00308632,85731.0,85730.0,0.69891]
[1765821427979,0.57446,85723.0,85722.0,0.00017498]
[1765821428273,1.08626,85723.0,85722.0,0.00017498]
[1765821428880,1.08526,85723.0,85722.0,0.00017498]
[1765821429283,1.08626,85723.0,85722.0,0.00017498]
[1765821429688,1.08526,85723.0,85722.0,0.00017498]
[1765821429885,1.08826,85723.0,85722.0,0.00017498]
[1765821430982,1.08826,85723.0,85722.0,0.69908498]
[1765821430983,1.06826,85723.0,85722.0,0.69908498]
[1765821431183,0.3638,85723.0,85722.0,0.69908498]
[1765821431490,0.3658,85723.0,85722.0,0.69908498]
[1765821431688,0.005,85723.0,85722.0,0.69908498]
[1765821431991,0.134,85723.0,85722.0,0.69908498]
[1765821432178,0.002,85723.0,85722.0,0.69908498]
[1765821432577,0.002,85723.0,85722.0,0.00017498]
[1765821432578,0.69546,85723.0,85722.0,0.00017498]
[1765821432979,0.69446,85723.0,85722.0,0.00117498]
[1765821434489,0.69446,85723.0,85722.0,0.00017498]
[1765821434793,0.69846,85723.0,85722.0,0.00017498]
[1765821435091,0.69646,85723.0,85722.0,0.00017498]
[1765821435489,0.57846,85723.0,85722.0,0.01184078]
[1765821435685,0.42923,85723.0,85722.0,0.71075078]
[1765821435882,0.71846,85723.0,85722.0,0.71075078]
[1765821436282,0.71646,85723.0,85722.0,0.71075078]
[1765821436593,0.004,85723.0,85722.0,0.71075078]
[1765821436985,0.29123,85723.0,85722.0,0.71075078]
[1765821437290,0.004,85723.0,85722.0,0.71075078]
[1765821437494,0.002,85723.0,85722.0,0.71075078]
[1765821437789,0.003,85723.0,85722.0,0.71075078]
[1765821438389,0.002,85723.0,85722.0,0.71075078]
[1765821438584,8.632e-05,85731.0,85730.0,0.7105747]
[1765821438782,0.01008632,85731.0,85730.0,0.7105747]
[1765821438980,0.00017498,85739.0,85737.0,0.7105738]
[1765821439296,0.0823327,85738.0,85737.0,0.7105738]
[1765821440091,0.5008,85751.0,85737.0,0.7105738]
[1765821440092,0.67633,85775.0,85774.0,0.0116587]
[1765821440286,0.80633,85775.0,85774.0,0.3724587]
[1765821440494,0.13015118,85775.0,85774.0,1.0713687]
[1765821440790,0.0116558,85796.0,85792.0,0.0116563]
[1765821440987,0.67633,85792.0,85791.0,0.3608]
[1765821441188,0.67633,85792.0,85785.0,0.00017486]
[1765821441189,0.67633,85786.0,85785.0,0.00017486]
[1765821441392,0.89402397,85786.0,85785.0,0.00017486]
[1765821441592,0.89402397,85786.0,85785.0,0.02015025]
[1765821441795,0.86640741,85786.0,85785.0,0.02015025]
[1765821442383,0.86740741,85786.0,85785.0,0.02015025]
[1765821442790,0.86840741,85786.0,85785.0,0.02015025]
[1765821443894,0.86740741,85786.0,85785.0,0.02015025]
[1765821444397,0.87906451,85786.0,85785.0,0.02015025]
[1765821447500,0.88106451,85786.0,85785.0,0.02015025]
[1765821448996,0.87806451,85786.0,85785.0,0.02015025]
[1765821449296,0.87906451,85786.0,85785.0,0.02015025]
[1765821450390,0.86740741,85786.0,85785.0,0.02015025]
[1765821450595,0.86640741,85786.0,85785.0,0.02015025]
[1765821450795,0.86740741,85786.0,85785.0,0.02015025]
[1765821454199,0.86640741,85786.0,85785.0,0.02015025]
[1765821454393,0.86740741,85786.0,85785.0,0.02015025]
[1765821454900,0.86740741,85786.0,85784.0,0.0116573]
[1765821454901,0.68779,85758.0,85757.0,0.011661]
[1765821455201,0.6994516,85755.0,85754.0,0.0116614]
[1765821455397,0.8394516,85755.0,85754.0,0.0116614]
[1765821455587,0.68779,85755.0,85754.0,0.37702762]
[1765821455787,0.68779,85755.0,85754.0,0.03156762]
[1765821455987,0.84779,85755.0,85754.0,0.03156762]
[1765821456190,0.68779,85755.0,85754.0,0.03156762]
[1765821456502,0.83779,85755.0,85754.0,0.03156762]
[1765821456895,0.68779,85755.0,85754.0,0.37702762]
[1765821457101,0.85779,85755.0,85754.0,0.37702762]
[1765821457301,0.68779,85755.0,85754.0,0.37702762]
[1765821457503,0.68779,85755.0,85754.0,0.71933762]
[1765821457806,0.68879,85755.0,85754.0,0.71933762]
[1765821458001,0.68879,85755.0,85754.0,0.72033762]
[1765821458504,0.68779,85755.0,85754.0,0.72033762]
[1765821459294,0.68779,85755.0,85754.0,1.08113762]
[1765821459495,0.68796486,85763.0,85762.0,0.0116604]
[1765821459695,0.68779,85761.0,85760.0,0.20236]
[1765821459997,0.68779,85755.0,85754.0,0.73782762]
[1765821460196,0.68879,85755.0,85754.0,0.73782762]
[1765821460398,0.82879,85755.0,85754.0,0.39236762]
[1765821460800,0.69962516,85763.0,85762.0,0.0116604]
[1765821461001,0.68779,85755.0,85754.0,1.08013762]
[1765821461704,0.87779,85755.0,85754.0,1.08013762]
[1765821461907,0.87779,85755.0,85754.0,0.39236762]
[1765821462207,0.68779,85762.0,85761.0,0.3571205]
[1765821462408,0.86779,85762.0,85761.0,0.34546]
[1765821462707,0.68779,85759.0,85758.0,0.0116608]
[1765821463015,0.86779,85759.0,85758.0,0.0116608]
[1765821463501,0.68779,85755.0,85754.0,0.39236762]
[1765821463696,0.82779,85755.0,85754.0,1.08013762]
[1765821463891,0.82779,85755.0,85754.0,0.73782762]
[1765821464091,0.82779,85755.0,85754.0,1.08013762]
[1765821464303,0.68779,85755.0,85754.0,1.08013762]
[1765821464499,0.35278506,85763.0,85762.0,0.34546]
[1765821464705,0.87962506,85763.0,85762.0,0.34546]
[1765821465092,0.68779,85762.0,85761.0,0.0116604]
[1765821465297,0.84779,85762.0,85761.0,0.0116604]
[1765821466099,0.84779,85762.0,85761.0,0.9017904]
[1765821467103,0.68779,85755.0,85754.0,0.38070622]
[1765821467297,0.84786741,85755.0,85754.0,0.01990622]
[1765821467498,0.68779,85751.0,85750.0,8.418e-05]
[1765821467697,0.8694519,85751.0,85750.0,8.418e-05]
[1765821467893,1.2302519,85751.0,85750.0,8.418e-05]
[1765821468496,0.6994524,85747.0,85736.0,0.08371113]
[1765821468803,0.8894524,85747.0,85746.0,0.02026275]
[1765821469107,0.8894524,85747.0,85734.0,0.3608]
[1765821469108,0.68779,85739.0,85738.0,0.0116636]
[1765821469407,0.87779,85739.0,85738.0,0.0116636]
[1765821469606,0.68779,85736.0,85735.0,0.09537513]
[1765821469807,0.82779,85736.0,85735.0,0.09537513]
[1765821470011,0.82779,85736.0,85735.0,0.11554294]
[1765821470504,0.84779,85736.0,85735.0,0.11554294]
[1765821471096,0.84879,85736.0,85735.0,0.11554294]
[1765821471297,0.84879,85736.0,85735.0,0.02016781]
[1765821471512,0.68779,85734.0,85732.0,0.09537553]
[1765821471808,0.68779,85732.0,85731.0,0.3571245]
[1765821472106,0.81779,85732.0,85731.0,0.6994345]
[1765821472296,0.8294544,85732.0,85731.0,0.71884806]
[1765821472496,0.81779,85732.0,85731.0,0.71884806]
[1765821472697,0.47095,85732.0,85731.0,0.71884806]
[1765821472902,0.13,85732.0,85731.0,0.71884806]
[1765821473111,0.68879,85736.0,85735.0,0.699434]
[1765821473309,0.8804539,85736.0,85734.0,0.08361324]
[1765821473606,0.6994542,85734.0,85732.0,0.08361324]
[1765821473802,0.34095,85733.0,85732.0,0.78304764]
[1765821474001,0.53095,85733.0,85732.0,0.6994344]
[1765821474207,0.53095,85733.0,85732.0,0.78304046]
[1765821474410,0.53095,85733.0,85732.0,0.6994344]
[1765821475311,0.53095,85733.0,85732.0,0.78303417]
[1765821475506,0.53095,85733.0,85732.0,0.78403417]
[1765821475707,0.87779,85733.0,85732.0,0.78403417]
[1765821476011,0.87779,85733.0,85732.0,0.78303417]
[1765821476413,0.87779,85733.0,85732.0,0.6994344]
[1765821477813,0.87779,85733.0,85732.0,0.78402945]
[1765821478206,0.87779,85733.0,85732.0,0.7004344]
[1765821478722,0.87779,85733.0,85732.0,0.6994344]
[1765821478723,0.19,85733.0,85732.0,0.6994344]
[1765821479410,0.00017486,85744.0,85743.0,0.9017929]
[1765821479614,0.00017486,85744.0,85743.0,1.6363529]
[1765821479818,0.3526119,85751.0,85750.0,0.699432]
[1765821480114,0.86779,85751.0,85750.0,0.699432]
[1765821480514,0.68779,85744.0,85743.0,0.0116629]
[1765821480703,0.68779,85744.0,85743.0,0.9017929]
[1765821481011,0.69079,85751.0,85750.0,0.68777]
[1765821481208,0.6994525,85746.0,85745.0,0.68777]
[1765821481512,0.8594525,85746.0,85745.0,0.68777]
[1765821482112,0.84779,85746.0,85745.0,0.68777]
[1765821482817,0.6927231,85742.0,85741.0,0.08361284]
[1765821483110,1.04186,85747.0,85746.0,0.0116625]
[1765821483315,0.33029,85737.0,85736.0,0.65198]
[1765821483513,0.8827238,85737.0,85736.0,0.65198]
[1765821483711,0.8827238,85737.0,85734.0,0.20646]
[1765821483712,0.68106,85735.0,85734.0,0.20646]
[1765821483907,0.68106,85732.0,85731.0,0.136268]
[1765821484110,0.87106,85732.0,85731.0,0.1246034]
[1765821484308,0.87106,85732.0,85731.0,0.01996448]
[1765821484508,0.68106,85730.0,85729.0,0.11630372]
[1765821484708,0.82106,85730.0,85729.0,0.0116648]
[1765821485014,0.68106,85730.0,85729.0,0.0116648]
[1765821485202,0.68106,85730.0,85729.0,0.76828372]
[1765821485403,0.6927236,85739.0,85738.0,0.3384936]
[1765821485716,0.8527236,85739.0,85738.0,0.6636436]
[1765821486705,0.84106,85739.0,85738.0,0.6636436]
[1765821487130,0.68206,85739.0,85738.0,0.6636436]
[1765821487309,0.001,85739.0,85738.0,0.6636436]
[1765821487910,0.001,85739.0,85738.0,0.76828252]
[1765821488110,0.3608,85750.0,85749.0,0.6636421]
[1765821488316,0.5608,85750.0,85749.0,0.73581354]
[1765821488614,1.24186,85750.0,85749.0,0.73581354]
[1765821488821,1.24186,85750.0,85749.0,0.65198]
[1765821489519,1.24286,85750.0,85749.0,0.65198]
[1765821490218,0.00017497,85752.0,85751.0,0.65198]
[1765821490418,0.12017497,85752.0,85751.0,1.01278]
[1765821490606,0.11419237,85752.0,85751.0,1.01278]
[1765821491723,0.11419237,85752.0,85751.0,1.13039603]
[1765821492022,0.00017497,85760.0,85751.0,1.13039603]
[1765821492023,0.00017497,85760.0,85754.0,0.65198]
[1765821492213,0.00017497,85760.0,85754.0,1.3865]
[1765821492622,0.00017497,85760.0,85754.0,1.50311603]
[1765821493627,0.00017497,85760.0,85754.0,1.59946743]
[1765821493920,0.00017497,85760.0,85754.0,1.60146743]
[1765821494309,1.0535185,85776.0,85775.0,0.0116586]
[1765821494514,1.23186,85776.0,85775.0,0.0116586]
[1765821495327,1.23194418,85776.0,85775.0,0.0116586]
[1765821495518,1.23194418,85776.0,85775.0,0.6636386]
[1765821495919,1.23294418,85776.0,85775.0,0.6636386]
[1765821496424,0.90265418,85776.0,85775.0,0.6636386]
[1765821496625,0.19008418,85776.0,85775.0,0.6636386]
[1765821497521,0.19008418,85776.0,85775.0,1.0244386]
[1765821497713,0.54085418,85776.0,85775.0,1.0244386]
[1765821498111,0.54185418,85776.0,85775.0,1.0254386]
[1765821498315,0.19108418,85776.0,85775.0,1.0254386]
[1765821498727,0.19008418,85776.0,85775.0,1.0254386]
[1765821499318,0.19008418,85776.0,85775.0,1.0244386]
[1765821499519,0.19008418,85776.0,85775.0,1.0254386]
[1765821499918,0.19008418,85776.0,85775.0,1.0244386]
[1765821500137,0.19008418,85776.0,85775.0,1.142022]
[1765821500319,0.05008418,85776.0,85775.0,1.142022]
[1765821500523,0.05008418,85776.0,85775.0,1.141022]
[1765821500725,0.05008418,85776.0,85775.0,1.143022]
[1765821501227,0.05008418,85776.0,85775.0,1.145022]
[1765821501438,0.73114418,85776.0,85775.0,0.493042]
[1765821501618,0.16008418,85776.0,85775.0,0.6676386]
[1765821501817,0.04008418,85776.0,85775.0,0.6666386]
[1765821502013,0.04008418,85776.0,85775.0,0.6686386]
[1765821502629,8.418e-05,85776.0,85775.0,0.6666386]
[1765821502929,0.04008418,85776.0,85775.0,0.6676386]
[1765821503122,0.04008418,85776.0,85775.0,0.6646386]
[1765821503315,0.04008418,85776.0,85775.0,0.782222]
[1765821504027,0.04008418,85776.0,85775.0,1.516462]
[1765821504331,0.04008418,85776.0,85775.0,1.515462]
[1765821505029,0.04008418,85776.0,85775.0,1.516462]
[1765821505231,0.04008418,85776.0,85775.0,1.516422]
[1765821505429,0.04008418,85776.0,85775.0,1.515422]
[1765821505617,0.04008418,85776.0,85775.0,1.516422]
[1765821506027,0.04008418,85776.0,85775.0,1.515422]
[1765821506228,0.04008418,85776.0,85775.0,1.517422]
[1765821506631,0.39085418,85776.0,85775.0,0.781222]
[1765821506934,0.86114418,85776.0,85775.0,0.32883]
[1765821507228,0.35085418,85776.0,85775.0,0.65298]
[1765821507429,0.40085418,85776.0,85775.0,1.01578]
[1765821507641,0.40085418,85776.0,85775.0,0.65498]
[1765821507837,0.73114418,85776.0,85775.0,0.65498]
[1765821508129,0.69280268,85776.0,85775.0,0.65398]
[1765821508331,0.87280268,85776.0,85775.0,0.002]
[1765821508734,0.692719,85772.0,85771.0,0.08354062]
[1765821508931,0.6927193,85770.0,85769.0,0.81770062]
[1765821509123,0.68106,85769.0,85768.0,0.08354062]
[1765821509329,0.6927195,85768.0,85767.0,0.08371559]
[1765821509529,0.8927195,85768.0,85767.0,0.08371559]
[1765821509926,0.6927195,85768.0,85767.0,0.08371559]
[1765821510126,0.8727195,85768.0,85767.0,0.08371559]
[1765821510637,0.6927195,85768.0,85767.0,0.08371559]
[1765821510935,0.8927195,85768.0,85767.0,0.08371559]
[1765821511127,0.8727195,85768.0,85767.0,0.08371559]
[1765821511323,0.6927195,85768.0,85767.0,0.08471559]
[1765821511534,0.8627195,85768.0,85767.0,0.40881559]
[1765821511831,0.8627195,85768.0,85767.0,0.08471559]
[1765821512138,0.6927195,85768.0,85767.0,0.08471559]
[1765821512331,0.8027195,85768.0,85767.0,0.08471559]
[1765821512526,0.8027195,85768.0,85767.0,0.43078559]
[1765821512928,0.8027195,85768.0,85767.0,0.08571559]
[1765821513132,0.8027195,85768.0,85767.0,0.43078559]
[1765821513332,0.8027195,85768.0,85767.0,0.00217497]
[1765821513535,0.0116601,85764.0,85763.0,0.08337062]
[1765821513735,0.68507,85754.0,85753.0,0.10479193]
[1765821513935,0.68507,85752.0,85751.0,0.10479193]
[1765821514144,0.68507,85753.0,85752.0,0.8976317]
[1765821514336,0.84507,85753.0,85752.0,1.00242363]
[1765821514636,0.83507,85753.0,85752.0,0.46152363]
[1765821514941,0.82507,85753.0,85752.0,1.00242363]
[1765821515440,0.81507,85753.0,85752.0,0.88597]
[1765821515934,0.68507,85753.0,85752.0,0.88997]
[1765821516139,0.83507,85753.0,85752.0,0.88997]
[1765821516532,0.83507,85753.0,85752.0,0.89297]
[1765821517531,0.82507,85753.0,85752.0,0.89297]
[1765821517933,0.82507,85753.0,85752.0,0.11161791]
[1765821518139,0.82507,85753.0,85752.0,0.007]
[1765821518140,1.54667,85753.0,85752.0,0.007]
[1765821518442,0.82507,85753.0,85752.0,0.007]
[1765821519034,1.18587,85753.0,85752.0,0.007]
[1765821523346,0.68507,85750.0,85749.0,0.10461791]
[1765821523545,0.6967327,85745.0,85744.0,0.00017497]
[1765821523744,1.2275327,85745.0,85744.0,0.00017497]
[1765821524445,1.2275327,85745.0,85744.0,4.97e-06]
[1765821525151,1.2275327,85745.0,85744.0,0.00500497]
[1765821526855,1.2275327,85745.0,85744.0,0.00800497]
[1765821527152,1.2275327,85745.0,85744.0,0.09169905]
[1765821527452,0.68507,85728.0,85727.0,0.14649448]
[1765821527653,0.6967351,85727.0,85726.0,0.14649448]
[1765821527843,0.8667351,85727.0,85726.0,0.85279583]
[1765821528244,0.6967351,85727.0,85726.0,0.85279583]
[1765821528450,0.8367351,85727.0,85726.0,0.70630135]
[1765821528951,0.001,85727.0,85726.0,0.71330135]
[1765821529139,0.51032,85727.0,85726.0,0.71330135]
[1765821529343,0.86007,85727.0,85726.0,0.71330135]
[1765821530052,0.86007,85727.0,85726.0,0.71930135]
[1765821530242,0.86007,85727.0,85726.0,0.37868135]